fUSD/lending_fUSD_20251229
["ID","MTS","AMOUNT","RATE_DAILY","PERIOD"]
[399992463,1766987445436,-150.0,0.00032904,2]
[399992464,1766987445446,-165.12680531,0.00032904,2]
[399992465,1766987445455,-150.0,0.00032931,2]
[399992466,1766987445464,-150.0,0.00032931,2]
[399992467,1766987445474,-150.0,0.00032959,2]
[399992468,1766987445483,-150.0,0.00032986,2]
[399992469,1766987445492,-150.0,0.00033014,2]
[399992470,1766987445502,-250.0,0.00033041,2]
[399992471,1766987445512,-378.89,0.00033165,2]
[399992472,1766987445523,-150.73404556,0.00033315,2]
[399992473,1766987445532,-150.0,0.00033315,2]
[399992474,1766987445542,-150.0,0.00033315,2]
[399992475,1766987445552,-500.0,0.00033315,2]
[399992477,1766987445564,-150.0,0.00033315,2]
[399992478,1766987445573,-150.0,0.00033315,2]
[399992479,1766987445583,-500.0,0.00033315,2]
[399992480,1766987445592,-150.0,0.00033315,2]
[399992481,1766987445601,-500.0,0.00033315,2]
[399992482,1766987445611,-157.94636774,0.00033315,2]
[399992485,1766987445621,-500.0,0.00033315,2]
[399992488,1766987445630,-500.0,0.00033315,2]
[399992491,1766987445640,-150.0,0.00033315,120]
[399992493,1766987445649,-150.0,0.00033315,2]
[399992496,1766987445658,-500.0,0.00033315,2]
[399992499,1766987445667,-692.0,0.00033315,2]
[399992501,1766987445676,-150.0,0.00033315,2]
[399992505,1766987445685,-150.0,0.00033315,2]
[399992509,1766987445695,-150.0,0.00033315,2]
[399992510,1766987445704,-150.0,0.00033315,2]
[399992512,1766987445713,-150.0,0.00033315,2]
[399992513,1766987445722,-500.0,0.00033315,2]
[399992514,1766987445731,-730.0,0.00033315,2]
[399992515,1766987445740,-500.0,0.00033315,2]
[399992516,1766987445749,-150.0,0.00033315,2]
[399992517,1766987445758,-154.6370732,0.00033315,2]
[399992518,1766987445766,-150.0,0.00033315,2]
[399992519,1766987445775,-150.0,0.00033315,2]
[399992520,1766987445784,-500.0,0.00033315,2]
[399992521,1766987445792,-150.0,0.00033315,2]
[399992522,1766987445801,-500.0,0.00033315,2]
[399992523,1766987445811,-500.0,0.00033315,2]
[399992524,1766987445820,-500.0,0.00033315,2]
[399992525,1766987445829,-150.0,0.00033315,2]
[399992526,1766987445838,-500.0,0.00033315,2]
[399992527,1766987445846,-150.0,0.00033315,2]
[399992528,1766987445855,-150.0,0.00033315,2]
[399992529,1766987445864,-150.0,0.00033315,2]
[399992530,1766987445873,-162.16080322,0.00033342,2]
[399992531,1766987445882,-150.0,0.00033342,2]
[399992532,1766987445891,-507.91503303,0.00033342,2]
[399992533,1766987445900,-150.0,0.00033342,2]
[399992534,1766987445913,-150.0,0.00033342,2]
[399992535,1766987445922,-500.0,0.00033342,2]
[399992536,1766987445931,-150.0,0.00033342,2]
[399992537,1766987445940,-514.66836114,0.00033342,2]
[399992538,1766987445950,-500.0,0.00033342,2]
[399992539,1766987445959,-500.0,0.00033342,2]
[399992541,1766987445969,-150.0,0.00033342,2]
[399992542,1766987445980,-239.74596544,0.00033342,120]
[399992544,1766987445990,-500.0,0.00033342,2]
[399992546,1766987446000,-692.0,0.00033342,2]
[399992548,1766987446009,-150.0,0.00033342,2]
[399992550,1766987446018,-157.53371708,0.00033342,2]
[399992552,1766987446027,-150.0,0.00033342,2]
[399992554,1766987446036,-150.0,0.00033342,2]
[399992556,1766987446045,-255.91007522,0.00033342,2]
[399992558,1766987446054,-500.0,0.00033342,2]
[399992560,1766987446063,-730.0,0.00033342,2]
[399992561,1766987446073,-500.0,0.00033342,2]
[399992564,1766987446082,-150.0,0.00033342,2]
[399992565,1766987446091,-150.0,0.00033342,2]
[399992567,1766987446101,-500.0,0.00033342,2]
[399992569,1766987446110,-500.0,0.00033342,2]
[399992571,1766987446119,-500.0,0.00033342,2]
[399992573,1766987446129,-500.0,0.00033342,2]
[399992575,1766987446138,-500.0,0.00033342,2]
[399992577,1766987446148,-175.8191271,0.00033342,2]
[399992579,1766987446157,-150.0,0.00033342,2]
[399992582,1766987446167,-150.0,0.00033342,2]
[399992583,1766987446175,-157.68957014,0.0003337,2]
[399992585,1766987446185,-500.0,0.0003337,2]
[399992587,1766987446194,-150.0,0.0003337,2]
[399992589,1766987446203,-500.0,0.0003337,2]
[399992591,1766987446212,-500.0,0.0003337,2]
[399992593,1766987446221,-196.93679101,0.0003337,2]
[399992595,1766987446231,-692.0,0.0003337,2]
[399992597,1766987446241,-500.0,0.0003337,2]
[399992599,1766987446252,-150.0,0.0003337,2]
[399992601,1766987446261,-232.63349637,0.0003337,2]
[399992603,1766987446270,-200.0,0.0003337,2]
[399992605,1766987446280,-500.0,0.0003337,2]
[399992607,1766987446289,-730.0,0.0003337,2]
[399992609,1766987446298,-500.0,0.0003337,2]
[399992611,1766987446308,-150.0,0.0003337,2]
[399992613,1766987446317,-200.0,0.0003337,2]
[399992615,1766987446326,-641.75453551,0.0003337,2]
[399992617,1766987446335,-500.0,0.0003337,2]
[399992619,1766987446344,-500.0,0.0003337,2]
[399992621,1766987446354,-500.0,0.0003337,2]
[399992623,1766987446363,-310.19111312,0.0003337,2]
[399992625,1766987446372,-158.71398149,0.0003337,2]
[399992626,1766987446381,-500.0,0.00033397,2]
[399992628,1766987446390,-150.0,0.00033397,2]
[399992630,1766987446401,-500.0,0.00033397,2]
[399992633,1766987446411,-500.0,0.00033397,2]
[399992634,1766987446420,-692.0,0.00033397,2]
[399992636,1766987446429,-500.0,0.00033397,2]
[399992638,1766987446439,-150.0,0.00033397,2]
[399992640,1766987446448,-500.0,0.00033397,2]
[399992643,1766987446457,-730.0,0.00033397,2]
[399992645,1766987446467,-500.0,0.00033397,2]
[399992646,1766987446476,-150.0,0.00033397,2]
[399992648,1766987446485,-500.0,0.00033397,2]
[399992651,1766987446495,-576.48202685,0.00033397,2]
[399992653,1766987446505,-500.0,0.00033397,2]
[399992654,1766987446516,-500.0,0.00033425,2]
[399992656,1766987446526,-150.0,0.00033425,2]
[399992658,1766987446535,-500.0,0.00033425,2]
[399992661,1766987446546,-154.3930636,0.00033425,2]
[399992663,1766987446555,-692.0,0.00033425,2]
[399992665,1766987446565,-500.0,0.00033425,2]
[399992667,1766987446575,-150.0,0.00033425,2]
[399992668,1766987446585,-500.0,0.00033425,2]
[399992670,1766987446594,-730.0,0.00033425,2]
[399992672,1766987446603,-500.0,0.00033425,2]
[399992674,1766987446614,-155.92124062,0.00033425,2]
[399992677,1766987446624,-500.0,0.00033425,2]
[399992679,1766987446633,-500.0,0.00033425,2]
[399992681,1766987446642,-500.0,0.00033452,2]
[399992683,1766987446651,-250.0,0.00033452,2]
[399992685,1766987446661,-500.0,0.00033452,2]
[399992687,1766987446669,-692.0,0.00033452,2]
[399992688,1766987446678,-500.0,0.00033452,2]
[399992691,1766987446687,-250.0,0.00033452,2]
[399992693,1766987446697,-500.0,0.00033452,2]
[399992695,1766987446706,-730.0,0.00033452,2]
[399992697,1766987446716,-500.0,0.00033452,2]
[399992699,1766987446725,-596.0,0.00033452,2]
[399992701,1766987446735,-500.0,0.00033452,2]
[399992702,1766987446744,-500.0,0.00033479,2]
[399992705,1766987446753,-259.07849987,0.00033479,2]
[399992707,1766987446763,-692.0,0.00033479,2]
[399992708,1766987446771,-500.0,0.00033479,2]
[399992710,1766987446780,-500.0,0.00033479,2]
[399992712,1766987446788,-730.0,0.00033479,2]
[399992714,1766987446797,-500.0,0.00033479,2]
[399992716,1766987446807,-500.0,0.00033479,2]
[399992719,1766987446818,-500.0,0.00033507,2]
[399992720,1766987446827,-500.0,0.00033507,2]
[399992722,1766987446836,-692.0,0.00033507,2]
[399992724,1766987446846,-500.0,0.00033507,2]
[399992726,1766987446856,-730.0,0.00033507,2]
[399992728,1766987446865,-500.0,0.00033507,2]
[399992730,1766987446875,-500.0,0.00033507,2]
[399992732,1766987446884,-500.0,0.00033534,2]
[399992734,1766987446893,-692.0,0.00033534,2]
[399992736,1766987446902,-500.0,0.00033534,2]
[399992738,1766987446914,-608.28541704,0.00033534,2]
[399992740,1766987446923,-730.0,0.00033534,2]
[399992742,1766987446933,-500.0,0.00033534,2]
[399992744,1766987446942,-500.0,0.00033534,2]
[399992746,1766987446952,-500.0,0.00033562,2]
[399992748,1766987446961,-692.0,0.00033562,2]
[399992750,1766987446970,-500.0,0.00033562,2]
[399992753,1766987446980,-730.0,0.00033562,2]
[399992755,1766987446991,-500.0,0.00033562,2]
[399992757,1766987447000,-500.0,0.00033562,2]
[399992759,1766987447010,-619.65062607,0.00033589,2]
[399992761,1766987447023,-692.0,0.00033589,2]
[399992763,1766987447032,-500.0,0.00033589,2]
[399992765,1766987447041,-730.0,0.00033589,2]
[399992767,1766987447050,-500.0,0.00033589,2]
[399992769,1766987447060,-500.0,0.00033589,2]
[399992771,1766987447069,-500.0,0.00033616,2]
[399992773,1766987447078,-692.0,0.00033616,2]
[399992775,1766987447087,-730.0,0.00033616,2]
[399992777,1766987447097,-500.0,0.00033616,2]
[399992779,1766987447106,-500.0,0.00033616,2]
[399992781,1766987447116,-500.0,0.00033644,2]
[399992783,1766987447125,-692.0,0.00033644,2]
[399992785,1766987447135,-730.0,0.00033644,2]
[399992787,1766987447144,-500.0,0.00033644,2]
[399992788,1766987447153,-500.0,0.00033644,2]
[399992789,1766987447163,-500.0,0.00033671,2]
[399992790,1766987447172,-692.0,0.00033671,2]
[399992791,1766987447182,-730.0,0.00033671,2]
[399992792,1766987447192,-500.0,0.00033671,2]
[399992793,1766987447202,-500.0,0.00033699,2]
[399992794,1766987447214,-692.0,0.00033699,2]
[399992795,1766987447227,-730.0,0.00033699,2]
[399992796,1766987447238,-500.0,0.00033699,2]
[399992797,1766987447249,-500.0,0.00033726,2]
[399992798,1766987447258,-692.0,0.00033726,2]
[399992799,1766987447268,-730.0,0.00033726,2]
[399992800,1766987447278,-349.77183022,0.00033726,2]
[399992801,1766987447288,-246.0,0.00033753,2]
[399992802,1766987447299,-692.0,0.00033753,2]
[399992803,1766987447309,-730.0,0.00033753,2]
[399992804,1766987447318,-692.0,0.00033781,2]
[399992805,1766987447327,-730.0,0.00033781,2]
[399992806,1766987447336,-692.0,0.00033808,2]
[399992807,1766987447345,-730.0,0.00033808,2]
[399992808,1766987447354,-692.0,0.00033836,2]
[399992809,1766987447363,-730.0,0.00033836,2]
[399992810,1766987447372,-692.0,0.00033863,2]
[399992811,1766987447382,-730.0,0.00033863,2]
[399992812,1766987447391,-692.0,0.0003389,2]
[399992813,1766987447400,-730.0,0.0003389,2]
[399992814,1766987447411,-692.0,0.00033918,2]
[399992815,1766987447424,-730.0,0.00033918,2]
[399992816,1766987447436,-710.0,0.00033945,2]
[399992817,1766987447445,-742.0,0.00033945,2]
[399992818,1766987447454,-2222.0,0.0003452,5]
[399992819,1766987447463,-169.30003882,0.00035526,2]
[399992820,1766987447472,-223.59942424,0.00036985,120]
[399992821,1766987447481,-158.88072115,0.0003714,2]
[399992822,1766987447492,-161.1699901,0.00037332,7]
[399992823,1766987447501,-157.83595804,0.00037332,7]
[399992824,1766987447510,-239.97655917,0.00037332,7]
[399992825,1766987447520,-160.09867247,0.00037332,7]
[399992826,1766987447530,-154.44039113,0.00037332,7]
[399992827,1766987447539,-150.0,0.00037332,7]
[399992828,1766987447548,-151.89260944,0.00037332,7]
[399992829,1766987447561,-352.0,0.00038,120]
[399992830,1766987447576,-680.1,0.00038356,26]
[399992831,1766987447586,-169.30003882,0.00038463,2]
[399992832,1766987447595,-280.846,0.00038758,52]
[399992833,1766987447604,-378.89,0.00039654,2]
[399992834,1766987447614,-979.92693417,0.00040158,7]
[399992835,1766987447624,-189.69,0.00040289,14]
[399992836,1766987447633,-481.65,0.00040714,2]
[399992837,1766987447645,-481.65,0.00040714,2]
[399992838,1766987447654,-481.65,0.00040714,2]
[399992839,1766987447663,-481.65,0.00040714,2]
[399992840,1766987447672,-481.65,0.00040714,2]
[399992841,1766987447681,-481.65,0.00040714,2]
[399992842,1766987447690,-2999.5000032,0.00041,120]
[399992843,1766987447699,-481.45,0.00041093,2]
[399992844,1766987447708,-622.1888904,0.00041095,120]
[399992845,1766987447717,-500.0,0.00041095,120]
[399992846,1766987447726,-500.0,0.00041095,120]
[399992847,1766987447735,-500.0,0.00041095,120]
[399992848,1766987447745,-269.34073731,0.00041095,120]
[399992849,1766987447754,-185.41040503,0.00041095,120]
[399992850,1766987447764,-312.21181666,0.00041096,2]
[399992851,1766987447773,-481.65,0.00041097,30]
[399992852,1766987447783,-481.65,0.00041097,30]
[399992853,1766987447792,-481.65,0.00041097,30]
[399992854,1766987447802,-481.65,0.00041097,30]
[399992855,1766987447812,-481.65,0.00041097,30]
[399992856,1766987447822,-481.65,0.00041097,30]
[399992857,1766987447831,-481.65,0.00041097,30]
[399992858,1766987447841,-481.65,0.00041097,30]
[399992859,1766987447850,-481.65,0.00041097,30]
[399992860,1766987447859,-481.65,0.00041097,30]
[399992861,1766987447868,-481.65,0.00041097,30]
[399992862,1766987447877,-481.65,0.00041097,30]
[399992863,1766987447887,-481.65,0.00041097,30]
[399992864,1766987447898,-481.65,0.00041097,30]
[399992865,1766987447913,-481.65,0.00041097,30]
[399992866,1766987447923,-481.65,0.00041097,30]
[399992867,1766987447934,-481.65,0.00041097,30]
[399992868,1766987447943,-481.65,0.00041097,30]
[399992869,1766987447954,-481.65,0.00041097,30]
[399992870,1766987447963,-481.65,0.00041097,30]
[399992871,1766987447972,-481.65,0.00041097,30]
[399992872,1766987447985,-481.65,0.00041097,30]
[399992873,1766987447994,-481.65,0.00041097,30]
[399992874,1766987448003,-481.65,0.00041097,30]
[399992875,1766987448013,-481.65,0.00041097,30]
[399992876,1766987448023,-165.9,0.000411,14]
[399992877,1766987448032,-152.0,0.00041169,3]
[399992878,1766987448041,-150.0,0.00041293,120]
[399992879,1766987448051,-210.89816652,0.000413,17]
[399992880,1766987448061,-500.0,0.00041314,60]
[399992881,1766987448070,-500.0,0.00041314,60]
[399992882,1766987448080,-500.0,0.00041314,60]
[399992883,1766987448089,-460.0,0.0004137,30]
[399992884,1766987448099,-7313.15432606,0.000414,2]
[399992885,1766987448110,-169.30003882,0.000414,15]
[399992886,1766987448120,-170.362165,0.000414,120]
[399992887,1766987448130,-213.53491881,0.000414,8]
[399992888,1766987448140,-5999.1294383,0.00041408,2]
[399992889,1766987448150,-1228.1456037,0.00041408,2]
[399992890,1766987448160,-59703.4252968,0.00041408,2]
[399992891,1766987448170,-150.0,0.00041473,60]
[399992892,1766987448179,-159.79234637,0.00041479,30]
[399992893,1766987448188,-300.0,0.00041499,30]
[399992894,1766987448198,-300.0,0.00041499,30]
[399992895,1766987448208,-500.0,0.00041499,120]
[399992896,1766987448217,-500.0,0.00041499,120]
[399992897,1766987448228,-500.0,0.00041499,120]
[399992898,1766987448239,-500.0,0.00041499,120]
[399992899,1766987448249,-500.0,0.00041499,120]
[399992900,1766987448258,-500.0,0.00041499,120]
[399992901,1766987448267,-500.0,0.00041499,120]
[399992902,1766987448277,-500.0,0.00041499,120]
[399992903,1766987448287,-500.0,0.00041499,120]
[399992904,1766987448296,-500.0,0.00041499,120]
[399992905,1766987448306,-500.0,0.00041499,120]
[399992906,1766987448315,-500.0,0.00041499,120]
[399992907,1766987448325,-500.0,0.00041499,120]
[399992908,1766987448334,-500.0,0.00041499,120]
[399992909,1766987448344,-500.0,0.00041499,120]
[399992910,1766987448354,-151.0,0.00041499,120]
[399992911,1766987448363,-500.0,0.00041499,120]
[399992912,1766987448373,-151.0,0.00041499,120]
[399992913,1766987448382,-151.0,0.00041499,120]
[399992914,1766987448391,-500.0,0.00041499,120]
[399992915,1766987448400,-151.0,0.00041499,120]
[399992916,1766987448410,-500.0,0.00041499,120]
[399992917,1766987448419,-151.0,0.00041499,120]
[399992918,1766987448428,-500.0,0.00041499,120]
[399992919,1766987448437,-151.0,0.00041499,120]
[399992920,1766987448447,-247.57713676,0.000415,31]
[399992921,1766987448456,-75061.11273608,0.000415,27]
[399992922,1766987448466,-150.0,0.000415,120]
[399992923,1766987448476,-32445.90123798,0.000415,120]
[399992924,1766987448491,-356.96167396,0.000415,120]
[399992925,1766987448502,-29851.71589201,0.000415,120]
[399992926,1766987448515,-12127.1228994,0.000415,120]
[399992927,1766987448526,-761.25738331,0.000415,120]
[399992928,1766987448540,-778488.66885805,0.000415,120]
[399992929,1766987448552,-657.5104487,0.000415,120]
[399992930,1766987448564,-347.14482896,0.000415,120]
[399992932,1766987448582,-3541.85362632,0.000415,120]
[399992933,1766987462067,192.76610378,0.00018669,120]
[399992941,1766987755411,981.87,0.00030137,120]
[399992943,1766987996397,-260.00041108,0.00014573,2]
[399992944,1766987996422,-352.5225,0.00014712,2]
[399992945,1766987996449,-203.3147,0.00014712,2]
[399992946,1766987996474,-785.0538,0.00014712,2]
[399992947,1766987996499,-250.0,0.00014789,2]
[399992948,1766987996524,-300.0,0.00014811,2]
[399992949,1766987996548,-150.0,0.00014811,2]
[399992950,1766987996573,-241.31988201,0.00014811,2]
[399992951,1766987996601,-500.0,0.00014811,2]
[399992952,1766987996630,-500.0,0.00014811,2]
[399992953,1766987996659,-500.0,0.00014811,2]
[399992954,1766987996692,-500.0,0.00014811,2]
[399992955,1766987996720,-500.0,0.00014811,2]
[399992956,1766987996749,-500.0,0.00014811,2]
[399992957,1766987996780,-500.0,0.00014811,2]
[399992958,1766987996810,-500.0,0.00014811,2]
[399992959,1766987996838,-500.0,0.00014811,2]
[399992960,1766987996866,-500.0,0.00014811,2]
[399992961,1766987997142,-500.0,0.00014811,2]
[399992962,1766987997170,-500.0,0.00014811,2]
[399992963,1766987997199,-500.0,0.00014811,2]
[399992964,1766987997228,-500.0,0.00014811,2]
[399992965,1766987997259,-500.0,0.00014811,2]
[399992966,1766987997286,-500.0,0.00014811,2]
[399992967,1766987997313,-500.0,0.00014811,2]
[399992968,1766987997340,-500.0,0.00014811,2]
[399992969,1766987997367,-500.0,0.00014811,2]
[399992970,1766987997393,-500.0,0.00014811,2]
[399992971,1766987997422,-488.91734127,0.00014811,2]
[399992972,1766987997447,-500.0,0.00014811,2]
[399992973,1766987997474,-500.0,0.00014811,2]
[399992974,1766987997502,-180.81175238,0.00014811,2]
[399992975,1766987997527,-500.0,0.00014811,2]
[399992976,1766987997553,-284.80350895,0.00014811,2]
[399992977,1766987997577,-500.0,0.00014811,2]
[399992978,1766987997599,-152.34670686,0.00014811,2]
[399992979,1766987997622,-416.57435008,0.00014811,2]
[399992980,1766987997647,-500.0,0.00014811,2]
[399992981,1766987997671,-498.035637,0.00014811,2]
[399992982,1766987997694,-500.0,0.00014811,2]
[399992983,1766987997720,-500.0,0.00014811,2]
[399992984,1766987997745,-500.0,0.00014811,2]
[399992985,1766987997769,-170.09376054,0.00014811,2]
[399992986,1766987997798,-500.0,0.00014811,2]
[399992987,1766987997821,-500.11704427,0.00014811,2]
[399992988,1766987997848,-500.0,0.00014811,2]
[399992989,1766987997875,-500.0,0.00014811,2]
[399992990,1766987997902,-500.0,0.00014811,2]
[399992991,1766987997926,-210.04347834,0.00014812,2]
[399992992,1766987997951,-204.12380552,0.00014812,2]
[399992993,1766987997974,-158.88072116,0.00014812,2]
[399992994,1766987997997,-541.39188557,0.00014812,2]
[399992995,1766987998025,-1000000.0,0.00014812,2]
[399992996,1766987998049,-500.0,0.00014812,2]
[399992997,1766987998076,-6695.2861,0.00014912,2]
[399992998,1766987998100,-236.1517,0.00014912,2]
[399992999,1766987998122,-320.7006,0.00014912,2]
[399993009,1766988173087,-413.759,0.00014418,2]
[399993010,1766988173116,-1625.5501648,0.00014612,2]
[399993011,1766988173143,-360.9279237,0.00014612,2]
[399993012,1766988173169,-205.47882013,0.00014612,2]
[399993013,1766988173196,-549.36245626,0.00014711,2]
[399993014,1766988173223,-168.9239174,0.00014711,2]
[399993015,1766988173256,-500.0,0.00014711,2]
[399993016,1766988173287,-500.0,0.00014711,2]
[399993017,1766988173319,-500.0,0.00014711,2]
[399993018,1766988173349,-500.0,0.00014711,2]
[399993019,1766988173378,-500.0,0.00014711,2]
[399993020,1766988173411,-500.0,0.00014711,2]
[399993021,1766988173441,-509.74001754,0.00014711,2]
[399993022,1766988173467,-5382.2109,0.00014712,2]
[399993023,1766988173496,-4352.2494,0.00014712,2]
[399993024,1766988173527,-1000000.0,0.00014712,2]
[399993025,1766988173552,-3230.855,0.00014712,2]
[399993026,1766988173577,-7502.4722,0.00014712,2]
[399993027,1766988173603,-409.3164449,0.00014813,2]
[399993028,1766988173628,-12800.5914289,0.00014813,2]
[399993029,1766988173669,203.94309107,0.00014418,2]
[399993030,1766988173707,203.94309107,0.00014612,2]
[399993031,1766988292970,-201.41739586,0.00014573,2]
[399993032,1766988292996,-313.36424729,0.00014711,2]
[399993033,1766988293021,-263.70729905,0.00014711,2]
[399993034,1766988308438,-224.4210578,0.00014711,2]
[399993036,1766988416322,-75.5789422,0.00014711,2]
[399993037,1766988416347,-300.0,0.00014711,2]
[399993038,1766988416371,-150.0,0.00014711,2]
[399993039,1766988416402,-236.29270095,0.00014711,2]
[399993040,1766988416435,-999238.12835685,0.00014712,2]
[399993041,1766988552106,-302.27140743,0.00014712,2]
[399993042,1766988552133,-761.87164315,0.00014712,2]
[399993043,1766988552161,-180.89017346,0.00014912,2]
[399993045,1766988631912,-468.29155456,0.00014573,2]
[399993046,1766988631923,-31.70844544,0.00014573,2]
[399993047,1766988631936,-788.2188704,0.00015121,2]
[399993048,1766988631946,-280.0,0.00015637,2]
[399993049,1766988631958,-201.79336227,0.00015973,2]
[399993050,1766988631968,-500.0,0.00015973,2]
[399993051,1766988631978,-150.0,0.00016027,2]
[399993052,1766988631988,-166.66,0.0001605,2]
[399993053,1766988631998,-15860.81932189,0.00016083,2]
[399993054,1766988632014,-260.99999986,0.00016083,2]
[399993055,1766988632027,-1171.15387376,0.00016083,2]
[399993056,1766988632044,-559.2491887,0.00016083,2]
[399993057,1766988632055,-544.02,0.00016083,2]
[399993058,1766988632067,-434.30423461,0.00016083,2]
[399993059,1766988632079,-1707.54897056,0.00016083,2]
[399993060,1766988632090,-4833.3439008,0.00016083,2]
[399993061,1766988632101,-8988.8,0.00016083,2]
[399993062,1766988632112,-731.71018286,0.00016083,2]
[399993063,1766988632124,-439.965,0.00016083,2]
[399993064,1766988632136,-7574.8739339,0.00016083,2]
[399993065,1766988632151,-700.24212184,0.00016083,2]
[399993066,1766988632162,-437.436765,0.00016083,2]
[399993071,1766988638021,-456.0,0.00016083,2]
[399993072,1766988638080,-2520.6447954,0.00016083,2]
[399993073,1766988638139,-14753.61128427,0.00016083,2]
[399993115,1766988640314,-4710.92486005,0.00016083,2]
[399993116,1766988640325,-612.4781407,0.00016083,2]
[399993117,1766988640336,-1135.96567531,0.00016083,2]
[399993118,1766988640349,-515.9703598,0.00016083,2]
[399993119,1766988640361,-2110.08564558,0.00016083,2]
[399993120,1766988640428,-1726.00720309,0.00016083,2]
[399993121,1766988640439,-4119.45280101,0.00016083,2]
[399993122,1766988640486,-424.61229598,0.00016083,2]
[399993124,1766988640497,-610.43664177,0.00016083,2]
[399993165,1766988644503,-289144.45430859,0.00016083,2]
[399993166,1766988644519,-97965.69209199,0.00016083,2]
[399993167,1766988644530,-2924.05367742,0.00016083,2]
[399993168,1766988644688,-2822.65653568,0.00016083,2]
[399993173,1766988646182,-4717.32328344,0.00016083,2]
[399993174,1766988646195,-1181.39263457,0.00016083,2]
[399993175,1766988646241,-538.76384455,0.00016083,2]
[399993176,1766988646254,-2004.41399771,0.00016083,2]
[399993200,1766989534537,160.0,0.000128,2]
[399993203,1766989579854,7699.06821321,0.000295,120]
[399993213,1766989745907,-170.8649845,0.00013599,2]
[399993214,1766989745932,-375.93,0.00013699,2]
[399993215,1766989745957,-263.0,0.00013699,2]
[399993216,1766989745980,-98040.22722328,0.000142,2]
[399993217,1766989746003,-500.0,0.00014573,2]
[399993218,1766989746026,-171.13,0.00014645,2]
[399993219,1766989746050,-196.53038157,0.00014968,2]
[399993220,1766989746072,-317.02355282,0.00014968,2]
[399993221,1766989746099,-384.55371938,0.00015055,2]
[399993222,1766989746125,-553.37293,0.00015055,2]
[399993223,1766989746153,-500.0,0.00015055,2]
[399993224,1766989746180,-500.0,0.00015055,2]
[399993225,1766989746207,-500.0,0.00015055,2]
[399993226,1766989746234,-500.0,0.00015055,2]
[399993227,1766989746261,-594.3441426,0.00015055,2]
[399993228,1766989746288,-500.0,0.00015055,2]
[399993229,1766989746315,-500.0,0.00015055,2]
[399993230,1766989746343,-500.0,0.00015055,2]
[399993231,1766989746374,-500.0,0.00015055,2]
[399993232,1766989746401,-500.0,0.00015055,2]
[399993233,1766989746430,-500.0,0.00015055,2]
[399993234,1766989746456,-500.0,0.00015055,2]
[399993235,1766989746483,-500.0,0.00015055,2]
[399993236,1766989746516,-500.0,0.00015055,2]
[399993237,1766989746546,-500.0,0.00015055,2]
[399993238,1766989746576,-500.0,0.00015055,2]
[399993239,1766989746606,-500.0,0.00015055,2]
[399993240,1766989746634,-500.0,0.00015055,2]
[399993241,1766989746662,-500.0,0.00015055,2]
[399993242,1766989746692,-500.0,0.00015055,2]
[399993243,1766989746720,-500.0,0.00015055,2]
[399993244,1766989746748,-500.0,0.00015055,2]
[399993245,1766989746776,-500.0,0.00015055,2]
[399993246,1766989746803,-500.0,0.00015055,2]
[399993247,1766989746828,-500.0,0.00015055,2]
[399993248,1766989746855,-500.0,0.00015055,2]
[399993249,1766989746882,-500.0,0.00015055,2]